bitfinex-derivatives/quotes_BTCF0:USTF0_20241125
["timestamp","ask_amount","ask_price","bid_price","bid_amount"]
[1732527492240,0.1910968,98726.0,98725.0,0.13]
[1732527492535,0.19853659,98726.0,98725.0,0.13]
[1732527495535,0.19093659,98726.0,98725.0,0.13]
[1732527496432,0.18083659,98726.0,98725.0,0.13]
[1732527497135,0.17083659,98726.0,98725.0,0.13]
[1732527497533,0.1910915,98726.0,98725.0,0.13]
[1732527497739,0.1734915,98726.0,98725.0,0.13]
[1732527498340,0.1733915,98726.0,98725.0,0.13]
[1732527499135,0.1632915,98726.0,98725.0,0.13]
[1732527501538,0.19229491,98726.0,98725.0,0.13]
[1732527502046,0.18219491,98726.0,98725.0,0.13]
[1732527502639,0.17209491,98726.0,98725.0,0.13]
[1732527505137,5.491e-05,98726.0,98725.0,0.13]
[1732527505342,0.46813491,98726.0,98725.0,0.13]
[1732527505538,0.64017491,98726.0,98725.0,0.4908]
[1732527506542,0.46813491,98726.0,98725.0,0.4908]
[1732527506743,0.64017491,98726.0,98725.0,0.4908]
[1732527507445,0.62257491,98726.0,98725.0,0.4908]
[1732527508047,0.61247491,98726.0,98725.0,0.4908]
[1732527509248,0.60977491,98726.0,98725.0,0.13]
[1732527509456,0.63003106,98726.0,98725.0,0.13]
[1732527510342,0.63003106,98726.0,98725.0,0.06945042]
[1732527510551,0.93391106,98726.0,98725.0,0.02562429]
[1732527510751,0.97191106,98726.0,98725.0,0.02562429]
[1732527510946,0.050601,98708.0,98700.0,0.3608]
[1732527511157,0.17204,98707.0,98700.0,0.5108]
[1732527511845,0.222642,98707.0,98700.0,0.5108]
[1732527512349,0.050602,98705.0,98700.0,0.5108]
[1732527512550,0.050603,98704.0,98700.0,0.5108]
[1732527513351,0.050604,98701.0,98700.0,0.5108]
[1732527513652,0.411404,98701.0,98700.0,0.15]
[1732527516961,0.050612,98687.0,98680.0,0.36216]
[1732527517152,0.64016,98686.0,98680.0,0.4908]
[1732527517350,0.690772,98686.0,98680.0,0.4908]
[1732527519955,0.73581869,98686.0,98680.0,0.4908]
[1732527520456,0.050613,98684.0,98680.0,0.4908]
[1732527521256,0.68520669,98686.0,98680.0,0.4908]
[1732527521257,0.050615,98682.0,98680.0,0.4908]
[1732527523357,1.5,98681.0,98680.0,0.4908]
[1732527523956,1.5,98681.0,98663.0,8.917e-05]
[1732527523957,0.050621,98669.0,98663.0,8.917e-05]
[1732527524253,0.17208,98668.0,98663.0,0.07008917]
[1732527525558,0.050623,98666.0,98663.0,0.07008917]
[1732527527261,0.050623,98665.0,98663.0,0.06758917]
[1732527527759,0.34268,98664.0,98663.0,0.06758917]
[1732527528460,0.78288,98664.0,98663.0,0.06758917]
[1732527530162,0.78288,98664.0,98647.0,9.834e-05]
[1732527530356,0.4788,98664.0,98656.0,0.0415]
[1732527532360,0.16652,98663.0,98656.0,0.0415]
[1732527532660,0.4394,98664.0,98656.0,0.0415]
[1732527532958,0.16652,98663.0,98656.0,0.0415]
[1732527533956,0.16652,98662.0,98656.0,0.0415]
[1732527534263,0.46832,98661.0,98656.0,0.0415]
[1732527534865,0.16652,98660.0,98657.0,0.050627]
[1732527535065,0.46832,98661.0,98657.0,0.200627]
[1732527535268,0.16652,98660.0,98657.0,0.200627]
[1732527535560,0.16652,98659.0,98657.0,0.15]
[1732527537760,0.46832,98661.0,98657.0,0.15]
[1732527537957,0.16652,98660.0,98657.0,0.15]
[1732527538466,0.16652,98660.0,98657.0,0.200627]
[1732527540464,0.16652,98660.0,98657.0,0.15]
[1732527540666,0.51348781,98661.0,98659.0,0.050626]
[1732527540965,0.51348781,98661.0,98659.0,0.200626]
[1732527540966,0.16652,98660.0,98659.0,0.200626]
[1732527541968,0.16652,98660.0,98659.0,0.15]
[1732527542360,0.16652,98660.0,98659.0,0.200626]
[1732527547566,0.04516781,98661.0,98659.0,0.865506]
[1732527547771,0.02027209,98680.0,98678.0,0.050616]
[1732527548073,0.02027209,98680.0,98679.0,0.4016]
[1732527548272,0.18679209,98680.0,98679.0,0.5908]
[1732527548673,0.16652,98680.0,98679.0,0.5908]
[1732527548975,0.16652,98694.0,98680.0,0.304]
[1732527549165,0.16652,98694.0,98693.0,0.3608]
[1732527549366,0.17657688,98694.0,98693.0,0.15]
[1732527549774,0.01005688,98694.0,98693.0,0.15]
[1732527549971,0.22005154,98694.0,98693.0,0.15]
[1732527550175,0.16659962,98694.0,98693.0,0.15]
[1732527550480,0.16659962,98694.0,98693.0,0.01]
[1732527550481,0.65470762,98694.0,98693.0,0.01]
[1732527550971,0.60409962,98694.0,98693.0,0.01]
[1732527551272,0.60409962,98694.0,98678.0,0.3608]
[1732527551471,0.08859553,98688.0,98678.0,0.4008]
[1732527551672,0.3608,98682.0,98678.0,0.04]
[1732527551880,0.050615,98680.0,98678.0,0.04]
[1732527552267,0.354615,98680.0,98678.0,0.04]
[1732527553070,0.050616,98679.0,98659.0,0.3608]
[1732527553263,0.08859553,98669.0,98659.0,0.3908]
[1732527553468,0.16652,98668.0,98659.0,0.3908]
[1732527557681,0.050622,98667.0,98659.0,0.3908]
[1732527559574,0.050623,98666.0,98659.0,0.33379377]
[1732527560176,0.16652,98665.0,98659.0,0.03]
[1732527561976,0.050623,98666.0,98659.0,0.03]
[1732527562283,0.16388,98665.0,98659.0,0.03]
[1732527564167,0.214503,98665.0,98659.0,0.03]
[1732527565078,0.050624,98664.0,98659.0,0.03]
[1732527565473,0.02026615,98660.0,98659.0,0.03]
[1732527566480,0.18414615,98660.0,98659.0,0.03]
[1732527567872,0.02026615,98660.0,98659.0,0.03]
[1732527568077,0.18414615,98660.0,98659.0,0.03]
[1732527570382,0.18414615,98660.0,98659.0,0.07494821]
[1732527570575,0.18414615,98660.0,98659.0,0.03]
[1732527571083,0.04505656,98668.0,98659.0,0.33408]
[1732527571269,0.16388,98667.0,98666.0,0.3608]
[1732527571472,0.16388,98667.0,98666.0,0.4908]
[1732527571874,0.15378,98667.0,98666.0,0.4908]
[1732527572578,0.02026868,98667.0,98666.0,0.4908]
[1732527572776,0.18414868,98667.0,98666.0,0.4908]
[1732527572979,0.02026868,98667.0,98666.0,0.4908]
[1732527573173,0.18414868,98667.0,98666.0,0.4908]
[1732527573775,0.18414868,98667.0,98666.0,0.13]
[1732527573979,0.18414868,98667.0,98666.0,0.4908]
[1732527574188,0.18414868,98667.0,98666.0,0.13]
[1732527574394,0.18404868,98667.0,98666.0,0.13]
[1732527574584,0.18404868,98667.0,98666.0,0.4908]
[1732527574884,0.17394868,98667.0,98666.0,0.13]
[1732527575385,0.16384868,98667.0,98666.0,0.4908]
[1732527575883,0.16384868,98667.0,98666.0,0.13]
[1732527576987,0.16384868,98667.0,98666.0,0.4908]
[1732527577487,0.18411658,98667.0,98666.0,0.4908]
[1732527578190,0.17401658,98667.0,98666.0,0.4908]
[1732527578489,0.15374868,98667.0,98666.0,0.4908]
[1732527578881,0.18719888,98667.0,98666.0,0.4908]
[1732527579185,0.16388,98669.0,98666.0,0.79484]
[1732527579388,0.46832,98681.0,98666.0,0.4908]
[1732527579687,0.16388,98683.0,98681.0,0.050615]
[1732527579885,0.16388,98686.0,98682.0,0.0767]
[1732527580080,0.16388,98686.0,98682.0,0.2067]
[1732527582090,0.16388,98693.0,98682.0,0.2067]
[1732527582383,0.23475545,98693.0,98691.0,0.3608]
[1732527582585,0.23475545,98693.0,98691.0,0.5108]
[1732527582788,0.22465545,98693.0,98691.0,0.5083]
[1732527583184,0.15378,98693.0,98691.0,0.5083]
[1732527583384,7.962e-05,98694.0,98692.0,0.0412]
[1732527583586,7.962e-05,98694.0,98692.0,0.1912]
[1732527583587,0.16395962,98694.0,98692.0,0.1912]
[1732527584185,0.16395962,98694.0,98692.0,0.15]
[1732527584186,0.05068762,98694.0,98692.0,0.15]
[1732527584387,0.16384,98693.0,98692.0,0.15]
[1732527588395,0.16224,98693.0,98692.0,0.15]
[1732527590892,0.16384,98693.0,98692.0,0.200609]
[1732527593602,0.16384,98693.0,98692.0,0.15]
[1732527599102,0.16384,98693.0,98692.0,0.5108]
[1732527603790,0.17404115,98693.0,98692.0,0.5108]
[1732527607294,0.17404115,98693.0,98692.0,0.15]
[1732527607497,0.21624115,98693.0,98692.0,0.15]
[1732527607798,0.25604115,98693.0,98692.0,0.15]
[1732527608003,0.25604115,98693.0,98672.0,0.57216]
[1732527608004,0.050614,98683.0,98672.0,0.57216]
[1732527608300,0.5498,98693.0,98672.0,0.3908]
[1732527608301,0.08859553,98682.0,98672.0,0.3908]
[1732527608498,0.211215,98681.0,98672.0,0.3908]
[1732527609197,0.1606,98681.0,98673.0,0.050619]
[1732527609402,0.1606,98681.0,98680.0,0.3608]
[1732527609593,0.60125904,98700.0,98680.0,0.4908]
[1732527609789,0.60125904,98700.0,98689.0,0.3608]
[1732527609790,0.1606,98693.0,98689.0,0.3608]
[1732527609998,0.1606,98693.0,98689.0,0.5008]
[1732527610700,7.962e-05,98694.0,98689.0,0.5008]
[1732527611003,0.1606,98693.0,98689.0,0.5008]
[1732527613009,0.05061,98691.0,98689.0,0.14]
[1732527618001,0.1606,98693.0,98689.0,0.14]
[1732527619113,0.211209,98693.0,98689.0,0.14]
[1732527619313,0.1606,98693.0,98689.0,0.14]
[1732527619613,0.05061,98691.0,98689.0,0.14]
[1732527621415,0.1606,98693.0,98689.0,0.14]
[1732527621806,0.050609,98692.0,98689.0,0.14]
[1732527623407,0.15696,98691.0,98689.0,0.14]
[1732527626312,0.02026,98690.0,98689.0,0.14]
[1732527628007,0.07087,98690.0,98689.0,0.14]
[1732527629406,0.43167,98690.0,98689.0,0.14]
[1732527630011,0.47524766,98690.0,98689.0,0.14]
[1732527635220,0.77924766,98690.0,98689.0,0.14]
[1732527636821,0.050623,98664.0,98663.0,0.3608]
[1732527637017,0.207623,98664.0,98663.0,0.4908]
[1732527637919,0.207623,98664.0,98663.0,0.13]
[1732527639324,0.568423,98664.0,98663.0,0.13]
[1732527639724,0.207623,98664.0,98663.0,0.13]
[1732527639914,0.568423,98664.0,98663.0,0.13]
[1732527640626,0.157,98664.0,98663.0,0.13]
[1732527644525,0.17726924,98664.0,98663.0,0.13]
[1732527644714,0.22168674,98664.0,98663.0,0.13]
[1732527645826,0.06468674,98664.0,98663.0,0.13]
[1732527646030,0.17726924,98664.0,98663.0,0.13]
[1732527655026,0.17146924,98664.0,98663.0,0.13]
[1732527657831,0.47554924,98664.0,98663.0,0.13]
[1732527664333,0.17146924,98664.0,98663.0,0.13]
[1732527664642,0.47554924,98664.0,98663.0,0.13]
[1732527664843,0.17146924,98664.0,98663.0,0.13]
[1732527665340,0.02026924,98664.0,98663.0,0.13]
[1732527665834,0.02026924,98664.0,98663.0,0.4908]
[1732527665835,0.17146924,98664.0,98663.0,0.4908]
[1732527666239,0.17146924,98664.0,98663.0,0.5297]
[1732527666631,0.02026924,98664.0,98663.0,0.5297]
[1732527666834,0.3608,98677.0,98663.0,0.5297]
[1732527667032,0.02026924,98680.0,98678.0,0.050616]
[1732527667233,0.3608,98707.0,98692.0,0.050609]
[1732527667445,0.1512,98693.0,98692.0,0.200609]
[1732527668334,0.1512,98693.0,98692.0,0.561409]
[1732527669444,0.1512,98693.0,98692.0,0.200609]
[1732527669638,0.19479212,98693.0,98692.0,0.200609]
[1732527669838,0.19479212,98693.0,98692.0,0.15]
[1732527670946,0.21506096,98693.0,98692.0,0.15]
[1732527671644,0.21506096,98693.0,98692.0,0.200609]
[1732527671834,0.19479212,98693.0,98692.0,0.561409]
[1732527672440,0.04359212,98693.0,98692.0,0.561409]
[1732527672636,0.1512,98693.0,98692.0,0.200609]
[1732527672841,0.1512,98693.0,98692.0,0.15]
[1732527673143,0.16123611,98693.0,98692.0,0.15]
[1732527674038,0.1512,98693.0,98692.0,0.15]
[1732527674443,0.1512,98693.0,98692.0,0.5108]
[1732527674835,0.16120351,98693.0,98692.0,0.15]
[1732527675040,0.16116351,98693.0,98692.0,0.5108]
[1732527675439,0.01000351,98693.0,98692.0,0.5108]
[1732527675645,0.01015572,98693.0,98692.0,0.5108]
[1732527675842,0.09036,98698.0,98692.0,0.5108]
[1732527676045,0.46824,98715.0,98707.0,0.050601]
[1732527676347,0.46824,98715.0,98708.0,0.04414625]
[1732527676348,0.518837,98715.0,98708.0,0.04414625]
[1732527676545,0.18817115,98709.0,98708.0,0.1513564]
[1732527676746,0.18824864,98709.0,98708.0,0.1513564]
[1732527676942,0.17150633,98709.0,98708.0,0.1513564]
[1732527677147,0.02034633,98709.0,98708.0,0.1513564]
[1732527677349,0.17150633,98709.0,98708.0,0.1513564]
[1732527677545,0.17150633,98709.0,98708.0,0.13]
[1732527682150,0.53230633,98709.0,98708.0,0.13]
[1732527682346,0.58290633,98709.0,98708.0,0.13]
[1732527684041,0.22210633,98709.0,98708.0,0.13]
[1732527684354,0.22050633,98709.0,98708.0,0.13]
[1732527685455,0.16990633,98709.0,98708.0,0.13]
[1732527687453,0.53070633,98709.0,98708.0,0.13]
[1732527687756,0.54108968,98709.0,98708.0,0.13]
[1732527688159,0.55790392,98709.0,98708.0,0.13]
[1732527689147,0.54108968,98709.0,98708.0,0.13]
[1732527689451,0.58008968,98709.0,98708.0,0.13]
[1732527689754,0.58008968,98709.0,98708.0,0.0983422]
[1732527692957,0.59685244,98709.0,98708.0,0.07554848]
[1732527693157,0.58008968,98709.0,98708.0,0.07554848]
[1732527694058,0.050601,98707.0,98688.0,0.1951]
[1732527694252,0.3608,98693.0,98688.0,0.13]
[1732527694455,0.15990505,98692.0,98688.0,0.13]
[1732527694656,0.01034505,98691.0,98688.0,0.13]
[1732527694855,0.47850505,98690.0,98688.0,0.13]
[1732527695058,0.01034505,98689.0,98688.0,0.13]
[1732527695452,0.01034505,98689.0,98688.0,0.180611]
[1732527695654,0.01034505,98689.0,98688.0,0.484611]
[1732527695857,0.14956,98697.0,98696.0,0.050607]
[1732527696059,0.16641358,98697.0,98696.0,0.561407]
[1732527696248,0.17613652,98697.0,98696.0,0.5108]
[1732527696448,0.16641358,98697.0,98696.0,0.50442936]
[1732527696761,0.00972993,98697.0,98696.0,1.10838936]
[1732527696968,0.04295052,98698.0,98697.0,0.354566]
[1732527697258,7.749e-05,98709.0,98698.0,0.00010994]
[1732527697562,7.749e-05,98709.0,98708.0,0.3608]
[1732527697764,7.749e-05,98709.0,98708.0,0.5008]
[1732527697963,7.749e-05,98709.0,98708.0,0.80472]
[1732527698150,0.05067749,98709.0,98708.0,0.80472]
[1732527698764,0.05067749,98709.0,98708.0,0.5008]
[1732527698963,0.05067749,98709.0,98708.0,0.14]
[1732527699163,0.06710718,98709.0,98708.0,0.11720655]
[1732527699557,0.41469307,98709.0,98708.0,0.0855483]
[1732527699758,0.17178718,98709.0,98708.0,0.0855483]
[1732527700064,0.17811787,98709.0,98708.0,0.0855483]
[1732527700260,0.15535749,98709.0,98708.0,0.0855483]
[1732527700458,0.15535749,98709.0,98708.0,0.3894683]
[1732527700658,7.749e-05,98709.0,98708.0,0.3894683]
[1732527701463,7.749e-05,98709.0,98708.0,0.6894683]
[1732527701659,0.15528,98725.0,98712.0,0.050599]
[1732527701861,0.29303213,98724.0,98723.0,0.3608]
[1732527702070,0.24232996,98726.0,98723.0,0.5008]
[1732527702260,0.02025992,98730.0,98723.0,0.5008]
[1732527702261,0.17141037,98725.0,98723.0,0.5008]
[1732527702460,0.01613037,98724.0,98723.0,0.5008]
[1732527704271,0.06672337,98724.0,98723.0,0.5008]
[1732527705270,0.06756012,98724.0,98723.0,0.5008]
[1732527705671,0.01696368,98724.0,98723.0,0.5008]
[1732527705872,0.01696368,98724.0,98723.0,1.155273]
[1732527706076,0.16625272,98749.0,98741.0,0.050584]
[1732527706077,0.29290996,98749.0,98741.0,0.050584]
[1732527706278,0.05058,98749.0,98748.0,0.32915571]
[1732527706478,0.0826639,98749.0,98748.0,0.36219662]
[1732527706680,0.0826639,98749.0,98748.0,0.09]
[1732527706883,0.10045801,98749.0,98748.0,0.09]
[1732527707177,0.10045801,98749.0,98748.0,0.02039282]
[1732527707380,0.0826639,98749.0,98748.0,0.02039282]
[1732527707570,0.05059,98729.0,98722.0,0.3608]
[1732527707769,0.02897036,98729.0,98722.0,0.3608]
[1732527707983,0.02897036,98729.0,98728.0,0.1172186]
[1732527708972,0.03844043,98729.0,98728.0,0.1172186]
[1732527709373,0.02897036,98729.0,98728.0,0.1172186]
[1732527709576,0.02800408,98729.0,98728.0,0.1172186]
[1732527710180,0.0107708,98729.0,98728.0,0.1172186]
[1732527711675,0.0107708,98729.0,98728.0,0.4210986]
[1732527712182,0.050587,98735.0,98728.0,0.4210986]
[1732527712378,0.050587,98735.0,98734.0,0.3608]
[1732527712577,0.050587,98735.0,98734.0,0.4908]
[1732527713286,0.06070359,98735.0,98734.0,0.4908]
[1732527714280,0.06057789,98735.0,98734.0,0.4908]
[1732527715186,0.050587,98735.0,98734.0,0.4908]
[1732527715378,0.06057733,98735.0,98734.0,0.4908]
[1732527716278,0.050587,98735.0,98734.0,0.4908]
[1732527717580,0.2309,98738.0,98734.0,0.4908]
[1732527717786,0.00998672,98737.0,98736.0,0.050586]
[1732527717983,0.00998672,98737.0,98736.0,0.190586]
[1732527718282,0.05058,98749.0,98744.0,0.050582]
[1732527718490,0.05058,98749.0,98744.0,0.551382]
[1732527718878,0.00999254,98748.0,98744.0,0.551382]
[1732527719283,0.050582,98745.0,98744.0,0.5008]
[1732527719475,0.050582,98745.0,98744.0,0.14]
[1732527719476,0.06057454,98745.0,98744.0,0.14]
[1732527719681,0.42137454,98745.0,98744.0,0.14]
[1732527720085,0.42162689,98745.0,98744.0,0.14]
[1732527720482,0.42165345,98745.0,98744.0,0.14]
[1732527721290,0.050582,98745.0,98744.0,0.14]
[1732527721489,0.01003783,98745.0,98744.0,0.14]
[1732527721790,0.01003783,98745.0,98744.0,0.5008]
[1732527721991,0.01003783,98748.0,98744.0,0.5008]
[1732527722185,0.1552,98749.0,98744.0,0.5008]
[1732527722186,0.01003783,98747.0,98744.0,0.5008]
[1732527722394,0.06061983,98746.0,98744.0,0.14]
[1732527722695,0.05053783,98745.0,98744.0,0.14]
[1732527723294,0.05053783,98745.0,98744.0,0.5008]
[1732527724589,0.05053783,98745.0,98744.0,0.855182]
[1732527724590,0.01003783,98745.0,98744.0,0.855182]
[1732527726091,0.19140815,98745.0,98744.0,0.855182]
[1732527726587,0.01003783,98745.0,98744.0,0.855182]
[1732527728689,0.18143374,98746.0,98744.0,0.851382]
[1732527728891,0.33053333,98750.0,98745.0,0.30387667]
[1732527729089,0.33053333,98750.0,98749.0,0.41138]
[1732527729297,0.33053333,98750.0,98749.0,0.86138]
[1732527729494,0.49129497,98750.0,98749.0,1.16518]
[1732527729792,0.50845379,98750.0,98749.0,1.16518]
[1732527729993,0.35719145,98750.0,98749.0,1.16518]
[1732527730400,0.49135569,98750.0,98749.0,1.16518]
[1732527730694,0.34789772,98750.0,98749.0,1.16518]
[1732527731202,0.33053333,98750.0,98749.0,1.16518]
[1732527731395,0.01710819,98754.0,98751.0,0.050579]
[1732527731695,0.25152032,98775.0,98751.0,0.050579]
[1732527731696,0.18143374,98763.0,98762.0,0.050573]
[1732527731891,0.18143374,98763.0,98762.0,0.541373]
[1732527732095,0.18143374,98765.0,98762.0,0.79456]
[1732527732293,0.0402,98775.0,98762.0,0.79456]
[1732527732294,0.18143374,98766.0,98764.0,0.050572]
[1732527732598,0.18143374,98766.0,98765.0,0.050571]
[1732527732803,0.050569,98770.0,98766.0,0.050571]
[1732527732993,0.050569,98770.0,98766.0,0.180571]
[1732527733189,0.050569,98770.0,98767.0,0.05057]
[1732527733395,0.0402,98775.0,98767.0,0.19057]
[1732527733598,0.0402,98775.0,98767.0,0.14]
[1732527734003,0.05057,98768.0,98767.0,0.14]
[1732527735096,0.05057,98768.0,98767.0,0.10836788]
[1732527735289,0.05057,98768.0,98767.0,0.08559276]
[1732527735792,0.0402,98775.0,98767.0,0.08559276]
[1732527735999,0.0402,98775.0,98772.0,0.3608]
[1732527736296,0.0402,98775.0,98772.0,0.4908]
[1732527736891,0.050568,98774.0,98772.0,0.4908]
[1732527737393,0.050568,98774.0,98772.0,0.45916943]
[1732527737797,0.050568,98774.0,98772.0,0.13]
[1732527739306,0.050568,98774.0,98772.0,0.4908]
[1732527740703,0.22010123,98773.0,98772.0,0.4908]
[1732527741194,0.04869654,98773.0,98772.0,0.4908]
[1732527741501,0.23009777,98773.0,98772.0,0.4908]
[1732527742107,0.04869654,98773.0,98772.0,0.4908]
[1732527743207,0.0387,98773.0,98772.0,0.0686]
[1732527743707,0.050573,98763.0,98762.0,0.3608]
[1732527743902,0.050573,98763.0,98762.0,0.4608]
[1732527748810,0.050573,98763.0,98762.0,0.1]
[1732527749113,0.050581,98746.0,98745.0,7.667e-05]
[1732527749310,0.202181,98746.0,98745.0,0.10007667]
[1732527750309,0.1516,98746.0,98745.0,0.10007667]
[1732527750509,0.1516,98746.0,98745.0,0.46087667]
[1732527753117,0.050581,98747.0,98745.0,0.46087667]
[1732527753314,0.050581,98747.0,98745.0,0.10007667]
[1732527759013,0.15452,98746.0,98745.0,0.10007667]
[1732527759419,0.15452,98746.0,98745.0,0.46087667]
[1732527760719,0.0406,98748.0,98745.0,0.46087667]
[1732527761812,0.050581,98746.0,98745.0,0.10007667]
[1732527762623,0.050581,98746.0,98745.0,0.03907667]
[1732527763217,0.518461,98746.0,98745.0,0.03907667]
[1732527764210,0.822261,98746.0,98745.0,0.03907667]
[1732527764414,0.050586,98737.0,98736.0,0.00011617]
[1732527764615,0.565906,98737.0,98736.0,0.13011617]
[1732527768127,0.60949591,98737.0,98736.0,0.13011617]
[1732527770122,0.45497591,98737.0,98736.0,0.13011617]
[1732527770326,0.60949591,98737.0,98736.0,0.13011617]
[1732527771424,0.91333591,98737.0,98736.0,0.13011617]
[1732527773324,0.050596,98718.0,98717.0,0.0391]
[1732527773625,0.050596,98718.0,98717.0,0.1091]
[1732527773626,0.205116,98718.0,98717.0,0.1091]
[1732527774419,0.205116,98718.0,98717.0,0.10922007]
[1732527777928,0.20521301,98718.0,98717.0,0.10922007]
[1732527779621,0.20521301,98718.0,98717.0,0.07012007]
[1732527779821,0.24919078,98718.0,98717.0,0.07012007]
[1732527780217,0.24919078,98718.0,98701.0,0.0397]
[1732527780218,0.50247478,98718.0,98701.0,0.0397]
[1732527780518,0.3608,98702.0,98701.0,0.1897]
[1732527780718,0.51536,98702.0,98701.0,0.1897]
[1732527781017,0.565964,98702.0,98701.0,0.1897]
[1732527781726,0.565964,98702.0,98701.0,0.15]
[1732527781929,0.869924,98702.0,98701.0,0.15]
[1732527783433,0.05061,98690.0,98666.0,0.3608]
[1732527783633,0.050621,98670.0,98666.0,0.4908]
[1732527783826,0.15456,98669.0,98666.0,0.4908]
[1732527784127,0.15456,98668.0,98666.0,0.4908]
[1732527784327,0.15456,98667.0,98666.0,0.4908]
[1732527784724,0.15456,98667.0,98666.0,0.13009908]
[1732527787531,0.19875704,98667.0,98666.0,0.13009908]
[1732527789036,0.54129704,98667.0,98666.0,0.01291156]
[1732527789235,0.54139401,98667.0,98666.0,0.01291156]
[1732527789631,0.54139401,98667.0,98666.0,9.908e-05]
[1732527790424,2.04139401,98667.0,98666.0,9.908e-05]
[1732527797039,0.54139401,98667.0,98656.0,0.0015]
[1732527797228,0.411427,98657.0,98656.0,0.1415]
[1732527797536,1.029067,98657.0,98656.0,0.1415]
[1732527800042,0.879747,98657.0,98656.0,0.1415]
[1732527800337,0.46832,98657.0,98656.0,0.1415]
[1732527800543,0.55594,98657.0,98656.0,0.1415]
[1732527800744,0.59992622,98657.0,98656.0,0.1415]
[1732527803337,0.45060622,98657.0,98656.0,0.1415]
[1732527803542,0.59992622,98657.0,98656.0,0.1415]
[1732527805050,0.62019827,98657.0,98656.0,0.1415]
[1732527806147,0.47087827,98657.0,98656.0,0.1415]
[1732527806347,0.3608,98659.0,98656.0,0.1415]
[1732527806646,0.14932,98666.0,98665.0,0.050622]
[1732527806850,0.46836,98677.0,98674.0,0.050618]
[1732527807056,0.46836,98677.0,98676.0,0.3608]
[1732527807347,0.050613,98684.0,98676.0,0.5008]
[1732527807546,0.14932,98683.0,98681.0,0.050614]
[1732527807746,0.14932,98683.0,98681.0,0.13]
[1732527807951,0.00010057,98690.0,98681.0,0.13]
[1732527808251,0.46836,98696.0,98692.0,0.050609]
[1732527808252,0.14932,98693.0,98692.0,0.050609]
[1732527808544,0.050606,98698.0,98692.0,0.180609]
[1732527808751,0.14932,98697.0,98692.0,0.13]
[1732527808947,0.050608,98694.0,98692.0,0.13]
[1732527809148,0.050608,98694.0,98692.0,0.30998267]
[1732527809343,0.050608,98694.0,98692.0,0.13]
[1732527810539,0.00012673,98700.0,98693.0,0.30396]
[1732527810739,0.00012673,98700.0,98698.0,0.411406]
[1732527810944,0.00012673,98700.0,98698.0,0.561406]
[1732527811144,0.00012673,98700.0,98699.0,0.30396]
[1732527811344,0.00012673,98700.0,98699.0,0.61394267]
[1732527811547,0.00012673,98700.0,98699.0,0.46286]
[1732527812245,0.14928,98711.0,98699.0,0.46298195]
[1732527812449,0.051217,98717.0,98710.0,0.3608]
[1732527812649,0.00062,98717.0,98715.0,0.050597]
[1732527812850,0.00062,98717.0,98715.0,0.180597]
[1732527816540,0.051216,98717.0,98715.0,0.180597]
[1732527816744,0.051216,98717.0,98715.0,0.13]
[1732527817847,0.051216,98717.0,98715.0,0.4908]
[1732527818153,0.14924,98716.0,98715.0,0.4908]
[1732527818744,9.598e-05,98724.0,98715.0,0.4908]
[1732527818745,0.050593,98723.0,98715.0,0.4908]
[1732527818945,0.050594,98721.0,98715.0,0.541397]
[1732527819342,0.050594,98721.0,98715.0,0.4908]
[1732527819553,0.14544,98722.0,98720.0,0.050594]
[1732527819851,0.14544,98722.0,98720.0,0.180594]
[1732527820362,0.196033,98723.0,98720.0,0.180594]
[1732527821055,0.050594,98722.0,98720.0,0.180594]
[1732527823142,0.050594,98722.0,98720.0,0.13]
[1732527824449,9.598e-05,98724.0,98720.0,0.13]
[1732527824657,9.598e-05,98724.0,98723.0,0.411393]
[1732527824853,9.598e-05,98724.0,98723.0,0.541393]
[1732527825455,9.598e-05,98724.0,98723.0,0.4908]
[1732527828455,9.598e-05,98724.0,98723.0,0.13]
[1732527830455,0.0446126,98724.0,98723.0,0.13]
[1732527831060,9.598e-05,98724.0,98723.0,0.13]
[1732527836963,9.598e-05,98724.0,98723.0,0.180594]
[1732527839673,9.598e-05,98724.0,98723.0,0.36086709]
[1732527840376,9.598e-05,98724.0,98723.0,0.180594]
[1732527841776,9.598e-05,98724.0,98723.0,0.42040806]
[1732527842178,9.598e-05,98724.0,98723.0,0.180594]
[1732527844175,0.05068898,98724.0,98723.0,0.42120829]
[1732527844574,9.598e-05,98724.0,98723.0,0.42120829]
[1732527845476,9.598e-05,98724.0,98723.0,0.13]
[1732527846080,9.598e-05,98724.0,98723.0,0.180594]
[1732527853473,9.598e-05,98724.0,98723.0,0.36111653]
[1732527853875,0.01018953,98724.0,98723.0,0.32947083]
[1732527854079,0.01018953,98724.0,98723.0,0.1489483]
[1732527854270,0.01018953,98724.0,98723.0,0.32947083]
[1732527854874,9.598e-05,98724.0,98723.0,0.32947083]
[1732527855073,9.598e-05,98724.0,98723.0,0.0983543]
[1732527855281,0.04219598,98724.0,98723.0,0.0983543]
[1732527858080,0.04219598,98724.0,98723.0,0.4591543]
[1732527858282,0.04219598,98724.0,98723.0,0.63967683]
[1732527858581,0.04219598,98724.0,98723.0,0.4591543]
[1732527859782,0.12549598,98724.0,98723.0,0.4591543]
[1732527859984,0.12549598,98724.0,98723.0,0.4116543]
[1732527860487,0.48629598,98724.0,98723.0,0.08]
[1732527860688,0.050601,98710.0,98709.0,0.3608]
[1732527860887,0.050601,98710.0,98709.0,0.4908]
[1732527860888,0.14428,98710.0,98709.0,0.4908]
[1732527863594,0.32640997,98710.0,98709.0,0.4908]
[1732527863791,0.14428,98710.0,98709.0,0.4908]
[1732527864298,0.18544896,98710.0,98709.0,0.4908]
[1732527866399,0.32627301,98710.0,98709.0,0.4908]
[1732527867200,0.3608,98719.0,98709.0,0.4908]
[1732527867201,0.18199301,98712.0,98709.0,0.4908]
[1732527867494,0.18197508,98716.0,98709.0,0.4908]
[1732527867693,0.14432,98718.0,98710.0,0.0435]
[1732527867896,0.18197508,98721.0,98717.0,0.3608]